fUST/lending_fUST_20240817
["ID","MTS","AMOUNT","RATE_DAILY","PERIOD"]
[335131468,1723881545584,273.37336231,9.9e-05,2]
[335131469,1723881550347,2285.95862771,0.00012,3]
[335131476,1723881944259,-239.91278038,0.00013333,2]
[335131477,1723881944285,-131.34894517,0.00013333,2]
[335131479,1723882040130,-482.20970462,0.00014245,3]
[335131480,1723882042102,-23.28675646,0.00014245,3]
[335131481,1723882042123,-223.31574828,0.00014245,2]
[335131482,1723882042144,-154.94630997,0.00014245,2]
[335131483,1723882042166,-156.82259234,0.00014245,2]
[335131484,1723882042187,-159.96301472,0.00014245,2]
[335131485,1723882042208,-157.71914903,0.00014245,2]
[335131486,1723882043108,-33.777644,0.00014245,2]
[335131487,1723882043129,-154.76012181,0.00014245,2]
[335131488,1723882043150,-132.71927679,0.00014245,2]
[335131489,1723882044086,-40.20965898,0.00014245,2]
[335131490,1723882044108,-174.223584,0.00014247,2]
[335131491,1723882044131,-300.0,0.00014518,2]
[335131492,1723882044155,-300.0,0.00014518,2]
[335131493,1723882044180,-894.99754113,0.00014519,2]
[335131494,1723882044206,-420.0,0.0001597,2]
[335131495,1723882044230,-587.0,0.00017567,2]
[335131496,1723882044253,-206.18682988,0.00019323,2]
[335131497,1723882147215,-156.82259234,0.00013971,2]
[335131498,1723882147237,-872.88030262,0.0002,2]
[335131499,1723882147258,-172.67964134,0.0002,2]
[335131500,1723882147279,-898.93964034,0.00020524,2]
[335131501,1723882147300,-486.69698202,0.0002155,2]
[335131505,1723882155357,161.88961506,0.00014519,2]
[335131507,1723882161700,83.11038494,0.00014519,2]
[335131508,1723882161722,186.75132056,0.00014519,2]
[335131509,1723882161743,39.90524746,0.00014519,2]
[335131510,1723882175330,154.88893732,0.00014519,2]
[335131511,1723882181257,74.60858311,9.9e-05,2]
[335131512,1723882181278,85.23655773,9.9e-05,2]
[335131513,1723882181302,113.52822147,9.9e-05,2]
[335131514,1723882197196,131.47177853,9.9e-05,2]
[335131515,1723882197222,141.90158378,9.9e-05,2]
[335131516,1723882227968,154.86511302,0.00012,2]
[335131575,1723882238183,-29.91511505,0.00014245,2]
[335131582,1723882238654,-9625.43408875,0.00014245,2]
[335131583,1723882238664,-2142.00029932,0.00014519,2]
[335131584,1723882238673,-234.62437253,0.00017598,2]
[335131585,1723882238682,-461.358885,0.00022132,2]
[335131586,1723882238691,-300.0,0.00022142,2]
[335131587,1723882238700,-9793.56553798,0.00022143,2]
[335131589,1723882242492,1671.09905836,0.00012,2]
[335131625,1723882246345,-736.87080341,0.00022143,2]
[335131626,1723882255599,728.49952178,0.00012,2]
[335131627,1723882257165,1500.0,0.00012,2]
[335131628,1723882258042,336.51520876,0.00012,2]
[335131629,1723882258569,288.15834108,0.00012,2]
[335131630,1723882259454,699.48316589,0.00012,2]
[335131631,1723882260741,154.92377471,0.00012,2]
[335131632,1723882262960,155.07207494,0.00012,2]
[335131633,1723882264801,1431.69331509,0.00012,2]
[335131634,1723882264833,413.48972324,0.00012,2]
[335131635,1723882265321,422.14513971,0.00012,2]
[335131636,1723882267016,155.00657586,0.00012,2]
[335131637,1723882267054,154.80649189,0.00012,2]
[335131638,1723882267395,811.0572358,0.00012,2]
[335131639,1723882267539,1612.83245615,0.00012,2]
[335131640,1723882270963,301.40413091,0.00012,2]
[335131641,1723882272756,158.03133886,0.00012,2]
[335131642,1723882273191,154.91936841,0.00012,2]
[335131643,1723882273574,933.43837954,0.00012,2]
[335131644,1723882274249,404.5358176,0.00012,2]
[335131645,1723882275174,157.03390899,0.00012,2]
[335131646,1723882275419,343.40298605,0.00012,2]
[335131648,1723882424369,154.79103211,0.00012,2]
[335131649,1723882424434,154.71377951,0.00012,2]
[335131650,1723882454389,154.71377951,0.00012,2]
[335131651,1723882498980,1671.44250935,0.00012,2]
[335131652,1723882528874,240.47582342,0.00012,2]
[335131653,1723882569401,154.93780858,0.00012,2]
[335131654,1723882596005,1671.44250935,0.00012,2]
[335131656,1723882683400,154.79103211,0.00012,2]
[335131657,1723882694407,154.71377951,0.00012,2]
[335131658,1723882695005,1671.44250935,0.00012,2]
[335131660,1723882813526,1671.44250935,0.00012,2]
[335131661,1723882918513,1671.44250935,0.00012,2]
[335131664,1723883028525,315.22335371,0.00012,2]
[335131665,1723883144544,-184.08282172,0.0001295,2]
[335131666,1723883225105,-308.98917171,0.0001295,2]
[335131667,1723883225126,-154.71377951,0.00012999,2]
[335131668,1723883225148,-191.95034667,0.00014145,2]
[335131669,1723883225169,-192.04445412,0.00014245,2]
[335131670,1723883225192,-174.223584,0.00014247,2]
[335131671,1723883225214,-500.99238516,0.00014519,2]
[335131672,1723883225235,-520.31494712,0.00014519,2]
[335131673,1723883225257,-1004.25000015,0.00014519,2]
[335131674,1723883225279,-249.10639693,0.00016175,2]
[335131675,1723883229100,-50.89360307,0.00016175,2]
[335131676,1723883229124,-206.23210119,0.00016176,2]
[335131677,1723883234108,-171.59245186,0.00016176,2]
[335131678,1723883237310,-1205.70768973,0.00016176,2]
[335131679,1723883244104,-223.25172028,0.00016176,2]
[335131680,1723883249124,-1344.76610654,0.00016176,2]
[335131681,1723883249147,-1382.3373149,0.00016252,2]
[335131682,1723883249170,-839.40698795,0.00016517,2]
[335131685,1723883318558,158.5,0.00023433,60]
[335131693,1723883348704,-93.10100625,0.00016517,2]
[335131694,1723883348725,-189.4897494,0.0001652,2]
[335131695,1723883348745,-592.0143569,0.0001654,2]
[335131696,1723883348767,-334.139847,0.00016577,2]
[335131697,1723883348789,-250.0,0.00016842,2]
[335131698,1723883348811,-250.0,0.00016889,2]
[335131699,1723883348833,-250.0,0.00016935,2]
[335131700,1723883348857,-250.0,0.00016981,2]
[335131701,1723883348880,-250.0,0.00017027,2]
[335131702,1723883348901,-250.0,0.00017073,2]
[335131703,1723883348923,-250.0,0.0001712,2]
[335131704,1723883348944,-250.0,0.00017166,2]
[335131705,1723883348966,-250.0,0.00017212,2]
[335131706,1723883348987,-250.0,0.00017258,2]
[335131707,1723883349009,-250.0,0.00017304,2]
[335131708,1723883349031,-250.0,0.0001735,2]
[335131709,1723883349053,-250.0,0.00017397,2]
[335131710,1723883349074,-250.0,0.00017443,2]
[335131711,1723883349096,-250.0,0.00017489,2]
[335131712,1723883349118,-250.0,0.00017535,2]
[335131713,1723883349139,-250.0,0.00017581,2]
[335131714,1723883349161,-250.0,0.00017628,2]
[335131715,1723883349183,-250.0,0.00017674,2]
[335131716,1723883349205,-250.0,0.0001772,2]
[335131717,1723883349226,-300.0,0.00018213,2]
[335131718,1723883349247,-300.0,0.00018213,2]
[335131719,1723883349267,-5265.97953263,0.00018214,2]
[335131720,1723883349290,-5265.97953263,0.00018456,2]
[335131721,1723883349311,-5265.97953263,0.00018734,2]
[335131722,1723883349332,-4117.83893789,0.0001881,2]
[335131723,1723883349353,-588.15614898,0.00018813,2]
[335131724,1723883349374,-500.0,0.00018813,2]
[335131725,1723883349395,-500.0,0.00018813,2]
[335131726,1723883349421,-500.0,0.00018813,2]
[335131727,1723883349442,-500.0,0.00018813,2]
[335131728,1723883349466,-500.0,0.00018813,2]
[335131729,1723883349489,-500.0,0.00018813,2]
[335131730,1723883349511,-300.68857708,0.00018813,2]
[335131731,1723883349533,-300.0,0.00018813,2]
[335131732,1723883349554,-500.0,0.00018813,2]
[335131733,1723883349575,-5265.97953263,0.00019034,2]
[335131734,1723883349596,-5265.97953263,0.00019241,2]
[335131735,1723883349617,-5265.97953263,0.00019568,2]
[335131736,1723883349639,-5265.97953263,0.00019933,2]
[335131737,1723883349660,-7480.78408996,0.0001999,2]
[335131738,1723883349682,-2312.85880506,0.0002,2]
[335131739,1723883349703,-175.4442046,0.0002002,2]
[335131740,1723883349725,-295.0,0.00020034,2]
[335131741,1723883349747,-5265.97953263,0.00020088,2]
[335131742,1723883349768,-5265.97953263,0.0002031,2]
[335131743,1723883349789,-5265.97953263,0.00020642,2]
[335131744,1723883349810,-5265.97953263,0.00020857,2]
[335131745,1723883349831,-1231.35422679,0.00021,2]
[335131746,1723883349853,-5265.97953263,0.00021146,2]
[335131747,1723883350020,-5265.97953263,0.00021381,2]
[335131748,1723883350047,-5265.97953275,0.0002174,2]
[335131749,1723883350069,-150.0,0.00021797,2]
[335131750,1723883350091,-295.28,0.00021813,3]
[335131751,1723883350115,-500.0,0.00021822,2]
[335131752,1723883350136,-185.00310321,0.00021822,2]
[335131753,1723883350157,-208.30812548,0.00021822,2]
[335131754,1723883350179,-500.0,0.00021822,2]
[335131755,1723883350202,-500.0,0.00021822,2]
[335131756,1723883350223,-72.41117388,0.00021822,2]
[335131757,1723883357116,-427.58882612,0.00021822,2]
[335131758,1723883357137,-220.42182356,0.00021822,2]
[335131759,1723883357159,-398.92587088,0.00021908,3]
[335131761,1723883374201,-44.00412912,0.00021908,3]
[335131762,1723883374224,-221.47,0.00021908,3]
[335131763,1723883374247,-390.45463541,0.00021918,2]
[335131764,1723883413968,248.85750712,0.00014519,2]
[335131765,1723883413995,81.19592602,0.00014519,2]
[335131819,1723883432446,-792.69070383,0.00022182,2]
[335131820,1723883432458,-547.53052437,0.00022182,2]
[335131821,1723883432468,-466.0848491,0.00022627,2]
[335131822,1723883432478,-3786.82649396,0.00023258,3]
[335131823,1723883432490,-17259.19992062,0.00023258,3]
[335131844,1723883438414,-200.07650857,0.00023257,2]
[335131845,1723883438424,-200.0,0.00023257,2]
[335131846,1723883438434,-1601.56349143,0.00023258,3]
[335131847,1723883438448,-2887.83715123,0.00023258,3]
[335131848,1723883439751,101.8229293,0.00017598,2]
[335131865,1723883440729,-53.39529216,0.00017598,2]
[335131867,1723883440739,-5876.52922366,0.00023258,3]
[335131869,1723883440748,-465.05424246,0.00023759,2]
[335131871,1723883440758,-2278.53124366,0.00024,60]
[335131873,1723883440770,-2250.03074794,0.00024,60]
[335131875,1723883440779,-334.139847,0.00024865,2]
[335131877,1723883440789,-167.107483,0.00025374,2]
[335131879,1723883440799,-1496.36272498,0.00026453,2]
[335131881,1723883440808,-430.62,0.00026533,3]
[335131883,1723883440817,-215.31,0.00026533,3]
[335131885,1723883440826,-645.98,0.00026533,3]
[335131887,1723883440836,-273.31824479,0.00026542,2]
[335131889,1723883440845,-166.76819337,0.00026542,2]
[335131891,1723883440856,-333.23180663,0.00026542,2]
[335131893,1723883440866,-500.0,0.00026542,2]
[335131895,1723883440875,-554.29527649,0.00026542,2]
[335131897,1723883440885,-2063.08928018,0.00026543,3]
[335131899,1723883440896,-4515.36666188,0.00026543,3]
[335131900,1723883440907,-427.737849,0.00026543,3]
[335131901,1723883440927,-9211.9315977,0.00026543,3]
[335131902,1723883440938,-9890.5594799,0.00026543,3]
[335131903,1723883440961,-503.921601,0.00026543,3]
[335131991,1723883443521,-8948.15282369,0.00026543,3]
[335132001,1723883444467,-152910.97839165,0.00026543,3]
[335132002,1723883444477,-251923.7992664,0.00026553,2]
[335132006,1723883446631,-154.71377951,0.00017598,2]
[335132008,1723883446642,-118.85574318,0.00026533,3]
[335132040,1723884348380,-160.65194178,0.00012999,2]
[335132041,1723884348403,-154.80649189,0.00012999,2]
[335132042,1723884348426,-520.25072733,0.00012999,2]
[335132043,1723884348452,-811.0572358,0.00012999,2]
[335132044,1723884348475,-112.79816089,0.00013025,2]
[335132047,1723884431119,-544.21920033,0.00012991,2]
[335132048,1723884431144,-155.10149656,0.00012991,2]
[335132049,1723884431169,-154.97456447,0.00012999,2]
[335132050,1723884431191,-404.90354849,0.00012999,2]
[335132051,1723884431214,-185.70609589,0.00013025,2]
[335132052,1723884431239,-154.99059179,0.00013333,2]
[335132053,1723884431262,-4.45868434,0.00013477,2]
[335132055,1723884445144,-373.2695643,0.00013477,2]
[335132056,1723884454091,-388.98090655,0.00013477,2]
[335132057,1723884454115,-184.2285852,0.00014245,2]
[335132058,1723884454138,-210.13067206,0.00014245,2]
[335132059,1723884454161,-342.47979758,0.00014245,2]
[335132060,1723884454183,-423.00090696,0.00014245,2]
[335132061,1723884454205,-174.223584,0.00014247,2]
[335132062,1723884454227,-174.2235916,0.00014247,2]
[335132063,1723884454248,-300.0,0.00014518,2]
[335132064,1723884454271,-154.89374893,0.00014519,2]
[335132065,1723884454293,-467.0229678,0.00018917,2]
[335132066,1723884454346,-3507.56475267,0.00018917,2]
[335132067,1723884545128,-154.71377951,0.00014245,2]
[335132068,1723884545151,-84.37702118,0.00014519,2]
[335132069,1723884552093,-203.7813199,0.00014519,2]
[335132070,1723884552117,-167.107481,0.00019262,2]
[335132071,1723884552141,-188.729189,0.00019348,2]
[335132072,1723884552163,-3918.51447072,0.00019349,2]
[335132073,1723884559131,-16414.52988778,0.00019349,2]
[335132074,1723884559154,-4458.3594417,0.00019936,2]
[335132075,1723884559180,-188.729189,0.00020356,2]
[335132076,1723884559204,-500.0,0.00021529,2]
[335132077,1723884559227,-500.0,0.00021529,2]
[335132078,1723884559258,-500.0,0.00021529,2]
[335132079,1723884559281,-500.0,0.00021529,2]
[335132080,1723884559304,-481.90383482,0.00021529,2]
[335132081,1723884559330,-14000.0,0.0002153,2]
[335132082,1723884559353,-6394.17983601,0.00021797,2]
[335132083,1723884563084,-245.0,0.00021797,2]
[335132084,1723884565046,245.0,0.00014519,2]
[335132085,1723884574103,-85.05343314,0.00014519,2]
[335132086,1723884574128,-3697.51118809,0.00021797,2]
[335132135,1723884632782,-4420.4506312,0.0002105,2]
[335132137,1723884632794,-7245.74784489,0.000215,2]
[335132678,1723884638689,-2754.25215511,0.000215,2]
[335132681,1723884638702,-500.0,0.00021796,2]
[335132683,1723884638716,-328.0093836,0.00021796,2]
[335132686,1723884638729,-500.0,0.00021796,2]
[335132688,1723884638741,-359.5049795,0.00021796,2]
[335132691,1723884638755,-500.0,0.00021796,2]
[335132693,1723884638767,-500.0,0.00021796,2]
[335132695,1723884638779,-500.0,0.00021796,2]
[335132698,1723884638792,-275.76709276,0.00021796,2]
[335132700,1723884638806,-126439.75871165,0.00021797,2]
[335132703,1723884638821,-191.32277135,0.00021918,2]
[335132705,1723884638833,-3603.10907068,0.000227,2]
[335132707,1723884638845,-10000.0,0.000228,2]
[335132710,1723884638857,-10000.0,0.00024086,2]
[335132712,1723884638869,-253.94,0.00025371,3]
[335132714,1723884638881,-761.86,0.00025371,3]
[335132717,1723884638894,-10000.0,0.00025381,2]
[335132719,1723884638906,-500.0,0.0002589,2]
[335132721,1723884638918,-507.88,0.00026422,3]
[335132724,1723884638931,-1133.63026641,0.0002643,2]
[335132726,1723884638944,-1197.09017996,0.00026433,2]
[335132728,1723884638956,-60944.5812971,0.00026521,2]
[335132731,1723884638970,-279.41,0.00026523,3]
[335132732,1723884638982,-838.27,0.00026523,3]
[335132733,1723884638996,-1002.33132173,0.00026533,2]
[335132734,1723884639007,-509.12476924,0.00026552,2]
[335132735,1723884639016,-1107.57471,0.00026553,7]
[335132736,1723884639026,-1107.57471,0.00026553,7]
[335132737,1723884639035,-150.112233,0.000266,10]
[335132738,1723884639046,-507.88,0.00026741,3]
[335132739,1723884639059,-500.0,0.00027,2]
[335132740,1723884639069,-1197.09017995,0.000273,2]
[335132741,1723884639079,-1000.0,0.00027397,2]
[335132742,1723884639089,-790.437621,0.00027397,7]
[335132743,1723884639099,-269.793174,0.00027397,7]
[335132764,1723884639335,-269.793174,0.00027397,7]
[335132768,1723884639361,-151.0,0.00027397,7]
[335132770,1723884639371,-1261.649599,0.00027397,7]
[335132772,1723884639381,-1261.649599,0.00027397,7]
[335132774,1723884639390,-702.918716,0.00027397,7]
[335132776,1723884639400,-702.918716,0.00027397,7]
[335132778,1723884639410,-151.0,0.00027397,7]
[335132780,1723884639421,-1144.753891,0.00027397,7]
[335132782,1723884639431,-1144.753891,0.00027397,7]
[335132784,1723884639441,-151.0,0.00027397,7]
[335132786,1723884639451,-151.0,0.00027397,7]
[335132788,1723884639460,-151.0,0.00027397,7]
[335132790,1723884639470,-151.0,0.00027397,7]
[335132792,1723884639479,-250.107705,0.00027397,7]
[335132794,1723884639489,-250.107705,0.00027397,7]
[335132796,1723884639499,-151.0,0.00027397,7]
[335132798,1723884639508,-151.0,0.00027397,7]
[335132800,1723884639518,-151.0,0.00027397,7]
[335132802,1723884639527,-1677.032608,0.00027397,7]
[335132804,1723884639537,-1677.032608,0.00027397,7]
[335132806,1723884639546,-161.073613,0.00027397,7]
[335132808,1723884639556,-161.073613,0.00027397,7]
[335132810,1723884639565,-152.382192,0.00027397,5]
[335132812,1723884639575,-2982.032975,0.00027397,7]
[335132814,1723884639584,-2982.032975,0.00027397,7]
[335132816,1723884639595,-151.0,0.00027397,7]
[335132818,1723884639604,-151.0,0.00027397,7]
[335132820,1723884639614,-151.0,0.00027397,7]
[335132822,1723884639623,-797.443032,0.00027397,7]
[335132824,1723884639633,-797.443032,0.00027397,7]
[335132826,1723884639642,-1930.11479,0.00027397,7]
[335132829,1723884639653,-1930.11479,0.00027397,7]
[335132831,1723884639662,-687.224274,0.00027397,7]
[335132833,1723884639672,-687.224274,0.00027397,7]
[335132835,1723884639682,-151.0,0.00027397,7]
[335132837,1723884639692,-250.713032,0.00027397,7]
[335132839,1723884639702,-150.112233,0.000275,7]
[335132841,1723884639711,-1015.76,0.00027792,3]
[335132843,1723884639720,-558.82,0.00027893,3]
[335132844,1723884639730,-1000.0,0.00027945,2]
[335132847,1723884639739,-150.01,0.00027998,2]
[335132849,1723884639749,-2995.80978526,0.00027998,2]
[335132851,1723884639759,-151.777433,0.00028105,7]
[335132853,1723884639769,-151.0,0.00028115,7]
[335132855,1723884639779,-182.375346,0.00028115,7]
[335132857,1723884639788,-152.137138,0.00028115,7]
[335132859,1723884639799,-151.664557,0.00028115,7]
[335132861,1723884639810,-1197.09017995,0.00028167,2]
[335132863,1723884639820,-151.0,0.00028196,7]
[335132865,1723884639831,-1677.032608,0.00028196,7]
[335132867,1723884639841,-1677.032608,0.00028196,7]
[335132869,1723884639851,-161.073613,0.00028196,7]
[335132871,1723884639861,-161.073613,0.00028196,7]
[335132873,1723884639871,-2982.032975,0.00028196,7]
[335132875,1723884639880,-2982.032975,0.00028196,7]
[335132877,1723884639890,-151.0,0.00028196,7]
[335132879,1723884639899,-151.0,0.00028196,7]
[335132881,1723884639910,-151.324081,0.00028196,7]
[335132883,1723884639920,-797.443032,0.00028196,7]
[335132885,1723884639929,-797.443032,0.00028196,7]
[335132887,1723884639939,-1930.11479,0.00028196,7]
[335132889,1723884639948,-1930.11479,0.00028196,7]
[335132891,1723884639958,-1107.57471,0.00028196,7]
[335132893,1723884639968,-1107.57471,0.00028196,7]
[335132895,1723884639979,-687.224274,0.00028196,7]
[335132897,1723884639991,-687.224274,0.00028196,7]
[335132899,1723884640002,-151.0,0.00028196,7]
[335132901,1723884640013,-151.0,0.00028206,7]
[335132903,1723884640025,-151.0,0.00028206,7]
[335132905,1723884640036,-200.611849,0.00028206,7]
[335132907,1723884640047,-200.611849,0.00028206,7]
[335132909,1723884640058,-551.658392,0.00028206,7]
[335132912,1723884640067,-551.658392,0.00028206,7]
[335132914,1723884640078,-289.41687,0.00028206,7]
[335132916,1723884640088,-289.41687,0.00028206,7]
[335132918,1723884640098,-358.497605,0.00028206,7]
[335132920,1723884640108,-358.497605,0.00028206,7]
[335132922,1723884640118,-151.0,0.00028206,7]
[335132924,1723884640132,-165.563256,0.00028206,7]
[335132926,1723884640142,-165.563256,0.00028206,7]
[335132928,1723884640152,-339.192336,0.00028206,7]
[335132930,1723884640164,-339.192336,0.00028206,7]
[335132932,1723884640178,-151.0,0.00028206,7]
[335132934,1723884640189,-151.0,0.00028206,7]
[335132936,1723884640199,-1660.361138,0.00028206,7]
[335132938,1723884640209,-1660.361138,0.00028206,7]
[335132940,1723884640219,-790.437621,0.00028206,7]
[335132942,1723884640229,-269.793174,0.00028206,7]
[335132945,1723884640239,-269.793174,0.00028206,7]
[335132947,1723884640249,-151.0,0.00028206,7]
[335132949,1723884640258,-1261.649599,0.00028206,7]
[335132951,1723884640267,-1261.649599,0.00028206,7]
[335132954,1723884640278,-702.918716,0.00028206,7]
[335132957,1723884640288,-702.918716,0.00028206,7]
[335132960,1723884640298,-151.0,0.00028206,7]
[335132963,1723884640308,-1144.753891,0.00028206,7]
[335132966,1723884640318,-1144.753891,0.00028206,7]
[335132969,1723884640328,-151.0,0.00028206,7]
[335132972,1723884640339,-151.0,0.00028206,7]
[335132974,1723884640350,-151.0,0.00028206,7]
[335132976,1723884640360,-151.0,0.00028206,7]
[335132978,1723884640370,-250.107705,0.00028206,7]
[335132980,1723884640380,-250.107705,0.00028206,7]
[335132982,1723884640393,-151.0,0.00028206,7]
[335132984,1723884640403,-154.353007,0.00028206,7]
[335132986,1723884640414,-151.0,0.00028206,7]
[335132988,1723884640425,-2319.636557,0.00028206,7]
[335132990,1723884640434,-2319.636557,0.00028206,7]
[335132992,1723884640444,-2070.099554,0.00028206,7]
[335132994,1723884640454,-2070.099554,0.00028206,7]
[335132996,1723884640464,-199.570181,0.00028206,7]
[335132998,1723884640474,-199.570181,0.00028206,7]
[335133000,1723884640484,-150.112233,0.000284,9]
[335133002,1723884640493,-823.397627,0.00028493,7]
[335133004,1723884640503,-823.397627,0.00028493,7]
[335133006,1723884640513,-292.024733,0.00028493,7]
[335133008,1723884640522,-292.024733,0.00028493,7]
[335133010,1723884640532,-1000.0,0.00028493,2]
[335133012,1723884640542,-1197.09017995,0.00029033,2]
[335133014,1723884640552,-1000.0,0.00029041,2]
[335133016,1723884640562,-150.112233,0.000293,5]
[335133018,1723884640572,-151.0,0.00029465,7]
[335133020,1723884640582,-151.0,0.00029465,7]
[335133022,1723884640591,-216.87738,0.00029465,7]
[335133024,1723884640601,-635.595675,0.00029465,7]
[335133026,1723884640611,-635.595675,0.00029465,7]
[335133028,1723884640621,-220.247638,0.00029465,7]
[335133031,1723884640631,-220.247638,0.00029465,7]
[335133033,1723884640641,-189.791189,0.00029465,7]
[335133035,1723884640651,-189.791189,0.00029465,7]
[335133037,1723884640660,-654.583035,0.00029465,7]
[335133039,1723884640670,-654.583035,0.00029465,7]
[335133041,1723884640680,-151.0,0.00029465,7]
[335133043,1723884640690,-1677.032608,0.00029465,7]
[335133045,1723884640700,-1677.032608,0.00029465,7]
[335133047,1723884640709,-161.073613,0.00029465,7]
[335133049,1723884640719,-161.073613,0.00029465,7]
[335133051,1723884640729,-2982.032975,0.00029465,7]
[335133053,1723884640739,-2982.032975,0.00029465,7]
[335133055,1723884640749,-151.0,0.00029465,7]
[335133057,1723884640758,-151.0,0.00029465,7]
[335133059,1723884640768,-797.443032,0.00029465,7]
[335133061,1723884640777,-797.443032,0.00029465,7]
[335133063,1723884640787,-687.224274,0.00029465,7]
[335133065,1723884640796,-687.224274,0.00029465,7]
[335133067,1723884640806,-1000.0,0.00029589,2]
[335133069,1723884640815,-500.0,0.00029615,2]
[335133071,1723884640825,-500.0,0.00029615,2]
[335133073,1723884640834,-500.0,0.00029747,2]
[335133075,1723884640844,-2000.0,0.0002976,120]
[335133078,1723884640854,-1930.11479,0.0002976,7]
[335133080,1723884640864,-1930.11479,0.0002976,7]
[335133082,1723884640874,-1107.57471,0.0002976,7]
[335133084,1723884640884,-1107.57471,0.0002976,7]
[335133086,1723884640893,-151.0,0.0002976,7]
[335133088,1723884640903,-1197.09017995,0.000299,2]
[335133090,1723884640913,-790.437621,0.0002998,7]
[335133092,1723884640922,-269.793174,0.0002998,7]
[335133094,1723884640932,-269.793174,0.0002998,7]
[335133096,1723884640941,-151.0,0.0002998,7]
[335133098,1723884640951,-1261.649599,0.0002998,7]
[335133100,1723884640962,-1261.649599,0.0002998,7]
[335133102,1723884640972,-702.918716,0.0002998,7]
[335133104,1723884640981,-702.918716,0.0002998,7]
[335133105,1723884640991,-151.0,0.0002998,7]
[335133107,1723884641001,-1144.753891,0.0002998,7]
[335133109,1723884641011,-151.0,0.0002998,7]
[335133112,1723884641022,-1144.753891,0.0002998,7]
[335133114,1723884641031,-151.0,0.0002998,7]
[335133116,1723884641041,-151.0,0.0002998,7]
[335133118,1723884641051,-151.0,0.0002998,7]
[335133120,1723884641061,-250.107705,0.0002998,7]
[335133122,1723884641070,-250.107705,0.0002998,7]
[335133124,1723884641080,-151.0,0.0002998,7]
[335133126,1723884641090,-151.0,0.0002998,7]
[335133127,1723884641099,-2319.636557,0.0002998,7]
[335133129,1723884641109,-2319.636557,0.0002998,7]
[335133131,1723884641119,-2070.099554,0.0002998,7]
[335133133,1723884641131,-2070.099554,0.0002998,7]
[335133136,1723884641141,-199.570181,0.0002998,7]
[335133138,1723884641151,-199.570181,0.0002998,7]
[335133140,1723884641161,-261.149498,0.0002999,7]
[335133142,1723884641172,-151.0,0.0002999,7]
[335133144,1723884641182,-200.611849,0.0002999,7]
[335133146,1723884641193,-200.611849,0.0002999,7]
[335133148,1723884641204,-551.658392,0.0002999,7]
[335133149,1723884641214,-551.658392,0.0002999,7]
[335133151,1723884641223,-289.41687,0.0002999,7]
[335133153,1723884641233,-289.41687,0.0002999,7]
[335133156,1723884641243,-358.497605,0.0002999,7]
[335133158,1723884641253,-358.497605,0.0002999,7]
[335133160,1723884641263,-823.397627,0.0002999,7]
[335133162,1723884641273,-823.397627,0.0002999,7]
[335133164,1723884641282,-292.024733,0.0002999,7]
[335133166,1723884641292,-292.024733,0.0002999,7]
[335133167,1723884641302,-151.0,0.0002999,7]
[335133169,1723884641311,-165.563256,0.0002999,7]
[335133171,1723884641321,-165.563256,0.0002999,7]
[335133173,1723884641332,-339.192336,0.0002999,7]
[335133176,1723884641343,-339.192336,0.0002999,7]
[335133178,1723884641353,-151.0,0.0002999,7]
[335133180,1723884641364,-151.0,0.0002999,7]
[335133182,1723884641373,-1660.361138,0.0002999,7]
[335133184,1723884641383,-1660.361138,0.0002999,7]
[335133186,1723884641393,-790.437621,0.0002999,7]
[335133188,1723884641403,-269.793174,0.0002999,7]
[335133190,1723884641412,-269.793174,0.0002999,7]
[335133192,1723884641422,-151.0,0.0002999,7]
[335133194,1723884641432,-1261.649599,0.0002999,7]
[335133196,1723884641441,-1261.649599,0.0002999,7]